fUSD/lending_fUSD_20260602
["ID","MTS","AMOUNT","RATE_DAILY","PERIOD"]
[423759503,1780397441000,-500.0,0.00014999,2]
[423759505,1780397441000,-500.0,0.00014999,2]
[423759507,1780397441000,-500.0,0.00014999,2]
[423759516,1780397441000,-500.0,0.00014999,2]
[423759518,1780397441000,-500.0,0.00014999,2]
[423759509,1780397441000,-500.0,0.00014999,2]
[423759512,1780397441000,-500.0,0.00014999,2]
[423759514,1780397441000,-500.0,0.00014999,2]
[423759525,1780397441000,-500.0,0.00014999,2]
[423759527,1780397441000,-500.0,0.00014999,2]
[423759522,1780397441000,-500.0,0.00014999,2]
[423759520,1780397441000,-500.0,0.00014999,2]
[423759409,1780397441000,-682.34,0.00014999,2]
[423759462,1780397441000,-500.0,0.00014999,2]
[423759475,1780397441000,-500.0,0.00014999,2]
[423759492,1780397441000,-500.0,0.00014999,2]
[423759466,1780397441000,-500.0,0.00014999,2]
[423759411,1780397441000,-682.34,0.00014999,2]
[423759405,1780397441000,-682.34,0.00014999,2]
[423759460,1780397441000,-500.0,0.00014999,2]
[423759415,1780397441000,-682.34,0.00014999,2]
[423759417,1780397441000,-682.34,0.00014999,2]
[423759422,1780397441000,-682.34,0.00014999,2]
[423759413,1780397441000,-682.34,0.00014999,2]
[423759420,1780397441000,-682.34,0.00014999,2]
[423759424,1780397441000,-682.34,0.00014999,2]
[423759426,1780397441000,-682.34,0.00014999,2]
[423759430,1780397441000,-682.34,0.00014999,2]
[423759428,1780397441000,-682.34,0.00014999,2]
[423759438,1780397441000,-500.0,0.00014999,2]
[423759434,1780397441000,-682.34,0.00014999,2]
[423759403,1780397441000,-682.34,0.00014999,2]
[423759451,1780397441000,-500.0,0.00014999,2]
[423759445,1780397441000,-500.0,0.00014999,2]
[423759457,1780397441000,-500.0,0.00014999,2]
[423759458,1780397441000,-500.0,0.00014999,2]
[423759455,1780397441000,-500.0,0.00014999,2]
[423759453,1780397441000,-500.0,0.00014999,2]
[423759447,1780397441000,-500.0,0.00014999,2]
[423759464,1780397441000,-500.0,0.00014999,2]
[423759432,1780397441000,-682.34,0.00014999,2]
[423759443,1780397441000,-500.0,0.00014999,2]
[423759436,1780397441000,-682.4069524,0.00014999,2]
[423759440,1780397441000,-500.0,0.00014999,2]
[423759449,1780397441000,-500.0,0.00014999,2]
[423759544,1780397442000,-500.0,0.00014999,2]
[423759556,1780397442000,-883.55,0.00014999,2]
[423759564,1780397442000,-883.55,0.00014999,2]
[423759562,1780397442000,-883.55,0.00014999,2]
[423759551,1780397442000,-500.0,0.00014999,2]
[423759553,1780397442000,-367.08155098,0.00014999,2]
[423759548,1780397442000,-500.0,0.00014999,2]
[423759560,1780397442000,-883.55,0.00014999,2]
[423759546,1780397442000,-500.0,0.00014999,2]
[423759558,1780397442000,-883.55,0.00014999,2]
[423759545,1780397442000,-500.0,0.00014999,2]
[423759533,1780397442000,-500.0,0.00014999,2]
[423759536,1780397442000,-500.0,0.00014999,2]
[423759535,1780397442000,-500.0,0.00014999,2]
[423759539,1780397442000,-500.0,0.00014999,2]
[423759538,1780397442000,-500.0,0.00014999,2]
[423759542,1780397442000,-500.0,0.00014999,2]
[423759540,1780397442000,-500.0,0.00014999,2]
[423759537,1780397442000,-500.0,0.00014999,2]
[423759543,1780397442000,-500.0,0.00014999,2]
[423759529,1780397442000,-500.0,0.00014999,2]
[423759531,1780397442000,-500.0,0.00014999,2]
[423759568,1780397442000,-883.55,0.00014999,2]
[423759541,1780397442000,-500.0,0.00014999,2]
[423759570,1780397442000,-883.55,0.00014999,2]
[423759613,1780397442000,-250.0,0.00015,2]
[423759572,1780397442000,-883.55,0.00014999,2]
[423759622,1780397442000,-300.13246974,0.00015,2]
[423759611,1780397442000,-1500.0,0.00015,2]
[423759614,1780397442000,-250.0,0.00015,2]
[423759616,1780397442000,-114666.90885987,0.00015,2]
[423759607,1780397442000,-1500.0,0.00015,2]
[423759605,1780397442000,-424.0,0.00015,5]
[423759566,1780397442000,-883.55,0.00014999,2]
[423759603,1780397442000,-528.0,0.00015,5]
[423759612,1780397442000,-250.0,0.00015,2]
[423759599,1780397442000,-300.0,0.00014999,2]
[423759601,1780397442000,-555.87165296,0.00014999,2]
[423759609,1780397442000,-1500.0,0.00015,2]
[423759597,1780397442000,-883.68194654,0.00014999,2]
[423759595,1780397442000,-883.55,0.00014999,2]
[423759593,1780397442000,-883.55,0.00014999,2]
[423759591,1780397442000,-883.55,0.00014999,2]
[423759585,1780397442000,-883.55,0.00014999,2]
[423759587,1780397442000,-883.55,0.00014999,2]
[423759576,1780397442000,-883.55,0.00014999,2]
[423759589,1780397442000,-883.55,0.00014999,2]
[423759578,1780397442000,-883.55,0.00014999,2]
[423759574,1780397442000,-883.55,0.00014999,2]
[423759581,1780397442000,-883.55,0.00014999,2]
[423759583,1780397442000,-883.55,0.00014999,2]
[423759719,1780397443000,-311.98467859,0.00015,2]
[423759717,1780397443000,-2874.02810723,0.00015,2]
[423759724,1780397443000,-3394.04644165,0.00015,2]
[423759715,1780397443000,-3454.1114814,0.00015,2]
[423759731,1780397443000,-2811.65685451,0.00015,2]
[423759711,1780397443000,-652.08200092,0.00015,2]
[423759713,1780397443000,-1421.95044621,0.00015,2]
[423759709,1780397443000,-595.85768052,0.00015,2]
[423759706,1780397443000,-1536.65580321,0.00015,2]
[423759722,1780397443000,-1514.86166025,0.00015,2]
[423759729,1780397443000,-151.0,0.00014773,2]
[423759734,1780397443000,-80339.41836274,0.00015,2]
[423759803,1780397443000,-27.49051551,0.00014773,2]
[423759824,1780397443000,-1242.72543657,0.00012652,2]
[423759800,1780397443000,-151.0,0.00014773,2]
[423759805,1780397443000,-123.50948449,0.00014773,2]
[423759801,1780397443000,-151.0,0.00014773,2]
[423759810,1780397443000,-1662.87558351,0.00015,2]
[423759808,1780397443000,-151.0,0.00014773,2]
[423759813,1780397443000,-151.0,0.00014773,2]
[423759814,1780397443000,-139.0,0.00015,2]
[423759807,1780397443000,-151.0,0.00014773,2]
[423759736,1780397443000,-404.75,0.00015,2]
[423759863,1780397444000,-5712.19315443,0.00012652,2]
[423759865,1780397444000,-12603.70379702,0.00012652,2]
[423759884,1780397444000,-968.38065445,0.00012652,2]
[423759882,1780397444000,-1146.57140496,0.00012652,2]
[423759879,1780397444000,-934.13766006,0.00012652,2]
[423760215,1780397446000,-6069.0,0.00014628,2]
[423760167,1780397446000,-732.23943309,0.00012652,2]
[423760195,1780397446000,-6337.07173078,0.00012652,2]
[423760198,1780397446000,-1226.67909126,0.00012652,2]
[423760204,1780397446000,-370.45,0.00012652,2]
[423760213,1780397446000,-138036.46223738,0.00012652,2]
[423760219,1780397446000,-151.0,0.00014773,2]
[423760237,1780397446000,-635.5062481,0.00015,2]
[423760217,1780397446000,-151.0,0.00014773,2]
[423760227,1780397446000,-151.0,0.00014773,2]
[423760229,1780397446000,-410656.87625654,0.00015,2]
[423760225,1780397446000,-151.0,0.00014773,2]
[423760221,1780397446000,-151.0,0.00014773,2]
[423760232,1780397446000,-3269.05551518,0.00015,2]
[423760234,1780397446000,-14950.81141236,0.00015,2]
[423760223,1780397446000,-151.0,0.00014773,2]
[423760243,1780397447000,-822.41952396,0.00015,2]
[423760245,1780397447000,-707.16647587,0.00015,2]
[423760248,1780397447000,-1783.65937132,0.00015,2]
[423760240,1780397447000,-951.48899512,0.00015,2]
[423761651,1780397464000,13530.0,0.0001,2]
[423761650,1780397464000,5531.0,0.000102,3]
[423761654,1780397680000,1457.0,0.000102,3]
[423761661,1780397886000,-5531.0,0.000105,5]
[423761662,1780397940000,-179.59248595,0.00010498,2]
[423761663,1780397994000,-300.0,0.00010497,2]
[423761667,1780398047000,-1200.0,0.00010497,2]
[423761668,1780398076000,166.27423638,0.00010397,2]
[423761669,1780398101000,-150.0,0.00010497,2]
[423761673,1780398154000,-300.0,0.00010496,2]
[423761676,1780398207000,-300.0,0.00010496,2]
[423761677,1780398261000,-300.0,0.00010495,2]
[423761681,1780398314000,-500.0,0.00010495,2]
[423761682,1780398367000,-500.0,0.00010495,2]
[423761719,1780398631000,-500.0,0.00010493,2]
[423761712,1780398631000,-368.16730516,0.00010493,2]
[423761711,1780398631000,-500.0,0.00010493,2]
[423761718,1780398631000,-500.0,0.00010493,2]
[423761720,1780398631000,-500.0,0.00010493,2]
[423761715,1780398631000,-500.0,0.00010493,2]
[423761709,1780398631000,-500.0,0.00010493,2]
[423761716,1780398631000,-500.0,0.00010493,2]
[423761710,1780398631000,-500.0,0.00010493,2]
[423761700,1780398631000,-104.18570853,0.00010492,2]
[423761706,1780398631000,-500.0,0.00010493,2]
[423761704,1780398631000,-415.81429147,0.00010493,2]
[423761707,1780398631000,-500.0,0.00010493,2]
[423761705,1780398631000,-500.0,0.00010493,2]
[423761702,1780398631000,-500.0,0.00010493,2]
[423761703,1780398631000,-84.18570853,0.00010493,2]
[423761701,1780398631000,-1095.81429147,0.00010492,2]
[423761698,1780398631000,-150.0,0.00010492,2]
[423761699,1780398631000,-300.0,0.00010492,2]
[423761708,1780398631000,-500.0,0.00010493,2]
[423761714,1780398631000,-500.0,0.00010493,2]
[423761724,1780398631000,-500.0,0.00010493,2]
[423761717,1780398631000,-500.0,0.00010493,2]
[423761713,1780398631000,-500.0,0.00010493,2]
[423761741,1780398631000,-263.50574647,0.00010493,2]
[423761738,1780398631000,-500.0,0.00010493,2]
[423761737,1780398631000,-500.0,0.00010493,2]
[423761735,1780398631000,-500.0,0.00010493,2]
[423761736,1780398631000,-500.0,0.00010493,2]
[423761734,1780398631000,-500.0,0.00010493,2]
[423761729,1780398631000,-500.0,0.00010493,2]
[423761732,1780398631000,-500.0,0.00010493,2]
[423761739,1780398631000,-500.0,0.00010493,2]
[423761730,1780398631000,-500.0,0.00010493,2]
[423761728,1780398631000,-500.0,0.00010493,2]
[423761727,1780398631000,-500.0,0.00010493,2]
[423761726,1780398631000,-500.0,0.00010493,2]
[423761733,1780398631000,-500.0,0.00010493,2]
[423761725,1780398631000,-500.0,0.00010493,2]
[423761723,1780398631000,-500.0,0.00010493,2]
[423761721,1780398631000,-500.0,0.00010493,2]
[423761731,1780398631000,-500.0,0.00010493,2]
[423761722,1780398631000,-500.0,0.00010493,2]
[423761754,1780398632000,-500.0,0.00010493,2]
[423761751,1780398632000,-500.0,0.00010493,2]
[423761752,1780398632000,-500.0,0.00010493,2]
[423761749,1780398632000,-500.0,0.00010493,2]
[423761743,1780398632000,-500.0,0.00010493,2]
[423761746,1780398632000,-500.0,0.00010493,2]
[423761745,1780398632000,-500.0,0.00010493,2]
[423761744,1780398632000,-500.0,0.00010493,2]
[423761742,1780398632000,-500.0,0.00010493,2]
[423761753,1780398632000,-500.0,0.00010493,2]
[423761747,1780398632000,-500.0,0.00010493,2]
[423761755,1780398632000,-500.0,0.00010493,2]
[423761765,1780398632000,-255.0,0.0001152,2]
[423761760,1780398632000,-294.43649581,0.00010497,2]
[423761756,1780398632000,-500.0,0.00010493,2]
[423761773,1780398632000,-189.63861257,0.00011663,2]
[423761770,1780398632000,-457.88404994,0.00011541,2]
[423761766,1780398632000,-81.13915163,0.00011535,2]
[423761771,1780398632000,-1020.54048194,0.00011541,2]
[423761772,1780398632000,-155.06033374,0.00011541,2]
[423761769,1780398632000,-46.51513438,0.00011541,2]
[423761762,1780398632000,-160.98,0.00011416,2]
[423761761,1780398632000,-160.0,0.00010678,2]
[423761759,1780398632000,-500.0,0.00010493,2]
[423761768,1780398632000,-338.86084837,0.00011535,2]
[423761780,1780398638000,-847.20337757,0.00011663,2]
[423761788,1780398638000,-166.7,0.00012094,2]
[423761782,1780398638000,-291.22,0.00011791,2]
[423761783,1780398638000,-160.98,0.00011817,2]
[423761784,1780398638000,-167.23,0.00011819,2]
[423761781,1780398638000,-963.15800986,0.00011663,2]
[423761785,1780398638000,-1000.0,0.00011853,2]
[423761787,1780398638000,-167.84,0.00012066,2]
[423761786,1780398638000,-1051.32,0.00011861,2]
[423761797,1780398638000,-433.0,0.00012653,2]
[423761789,1780398638000,-150.0,0.00012165,2]
[423761799,1780398638000,-809.81566553,0.00012695,2]
[423761798,1780398638000,-587.0,0.00012683,2]
[423761796,1780398638000,-160.98,0.00012618,2]
[423761790,1780398638000,-160.98,0.00012217,2]
[423761793,1780398638000,-670.06,0.00012412,2]
[423761791,1780398638000,-200.0,0.00012245,2]
[423761792,1780398638000,-208.75,0.00012329,2]
[423761795,1780398638000,-172.31,0.00012531,2]
[423761984,1780398639000,-947.98,0.00012695,2]
[423762046,1780398640000,-166.30950191,0.00013659,2]
[423762041,1780398640000,-8799.58,0.00013608,2]
[423762043,1780398640000,-835.188,0.0001363,2]
[423762047,1780398640000,-150.70244173,0.00013661,2]
[423762054,1780398640000,-500.0,0.00013698,2]
[423762056,1780398640000,-500.0,0.00013698,2]
[423762052,1780398640000,-500.0,0.00013698,2]
[423762050,1780398640000,-1933.28841534,0.00013675,2]
[423762060,1780398640000,-516.35938303,0.00013698,2]
[423762062,1780398640000,-500.0,0.00013698,2]
[423762039,1780398640000,-150.0,0.00013488,2]
[423762066,1780398640000,-500.0,0.00013698,2]
[423762072,1780398640000,-500.0,0.00013698,2]
[423762078,1780398640000,-500.0,0.00013698,2]
[423762064,1780398640000,-500.0,0.00013698,2]
[423762076,1780398640000,-500.0,0.00013698,2]
[423762074,1780398640000,-500.0,0.00013698,2]
[423762058,1780398640000,-500.0,0.00013698,2]
[423762037,1780398640000,-150.70244173,0.00013414,2]
[423762033,1780398640000,-1397.97021328,0.00013374,2]
[423762080,1780398640000,-500.0,0.00013698,2]
[423761998,1780398640000,-593.20433447,0.00012695,2]
[423762001,1780398640000,-151.32,0.00012741,2]
[423762006,1780398640000,-150.99,0.00012893,2]
[423762004,1780398640000,-1548.12,0.00012757,2]
[423762002,1780398640000,-2640.31,0.00012757,2]
[423762009,1780398640000,-9999.99,0.00012893,2]
[423762008,1780398640000,-9999.99,0.00012893,2]
[423762010,1780398640000,-191.71728367,0.00012893,2]
[423762035,1780398640000,-1591.0,0.000134,2]
[423762012,1780398640000,-196.75034628,0.000129,2]
[423762017,1780398640000,-17765.4552,0.00013006,2]
[423762024,1780398640000,-150.70244174,0.00013166,2]
[423762018,1780398640000,-2102.64,0.00013048,2]
[423762028,1780398640000,-157.19,0.00013369,2]
[423762026,1780398640000,-152.0,0.00013327,7]
[423762022,1780398640000,-2000.0,0.00013121,2]
[423762031,1780398640000,-704.66978672,0.00013374,2]
[423762020,1780398640000,-500.0,0.00013096,2]
[423762015,1780398640000,-1074.88,0.00012914,2]
[423762082,1780398640000,-500.0,0.00013698,2]
[423762070,1780398640000,-500.0,0.00013698,2]
[423762086,1780398640000,-500.0,0.00013698,2]
[423762131,1780398640000,-500.0,0.00013699,2]
[423762129,1780398640000,-500.0,0.00013699,2]
[423762133,1780398640000,-500.0,0.00013699,2]
[423762135,1780398640000,-500.0,0.00013699,2]
[423762137,1780398640000,-500.0,0.00013699,2]
[423762139,1780398640000,-500.0,0.00013699,2]
[423762084,1780398640000,-500.0,0.00013698,2]
[423762141,1780398640000,-500.0,0.00013699,2]
[423762121,1780398640000,-500.0,0.00013699,2]
[423762145,1780398640000,-500.0,0.00013699,2]
[423762151,1780398640000,-500.0,0.00013699,2]
[423762149,1780398640000,-500.0,0.00013699,2]
[423762147,1780398640000,-500.0,0.00013699,2]
[423762155,1780398640000,-303.19516436,0.00013699,2]
[423762157,1780398640000,-500.0,0.00013699,2]
[423762161,1780398640000,-500.0,0.00013699,2]
[423762159,1780398640000,-500.0,0.00013699,2]
[423762163,1780398640000,-326.80483564,0.00013699,2]
[423762153,1780398640000,-196.80483564,0.00013699,2]
[423762118,1780398640000,-500.0,0.00013699,2]
[423762143,1780398640000,-500.0,0.00013699,2]
[423762126,1780398640000,-500.0,0.00013699,2]
[423762127,1780398640000,-500.0,0.00013699,2]
[423762091,1780398640000,-500.0,0.00013698,2]
[423762101,1780398640000,-332.43502562,0.00013698,2]
[423762104,1780398640000,-167.56497438,0.00013698,2]
[423762106,1780398640000,-500.0,0.00013698,2]
[423762093,1780398640000,-500.0,0.00013698,2]
[423762107,1780398640000,-166.66,0.00013699,2]
[423762108,1780398640000,-200.0,0.00013699,2]
[423762099,1780398640000,-500.0,0.00013698,2]
[423762089,1780398640000,-500.0,0.00013698,2]
[423762097,1780398640000,-500.0,0.00013698,2]
[423762095,1780398640000,-500.0,0.00013698,2]
[423762123,1780398640000,-500.0,0.00013699,2]
[423762120,1780398640000,-500.0,0.00013699,2]
[423762114,1780398640000,-500.0,0.00013699,2]
[423762068,1780398640000,-502.4565391,0.00013698,2]
[423762116,1780398640000,-500.0,0.00013699,2]
[423762112,1780398640000,-475.49351836,0.00013699,2]
[423762110,1780398640000,-500.0,0.00013699,2]
[423762109,1780398640000,-500.0,0.00013699,2]
[423762981,1780398647000,-500.0,0.00013699,2]
[423762983,1780398647000,-500.0,0.00013699,2]
[423762979,1780398647000,-500.0,0.00013699,2]
[423762985,1780398647000,-500.0,0.00013699,2]
[423762970,1780398647000,-500.0,0.00013699,2]
[423762972,1780398647000,-500.0,0.00013699,2]
[423762977,1780398647000,-500.0,0.00013699,2]
[423762974,1780398647000,-500.0,0.00013699,2]
[423762966,1780398647000,-500.0,0.00013699,2]
[423762987,1780398647000,-500.0,0.00013699,2]
[423762960,1780398647000,-500.0,0.00013699,2]
[423762964,1780398647000,-500.0,0.00013699,2]
[423762958,1780398647000,-500.0,0.00013699,2]
[423762956,1780398647000,-66.7596127,0.00013699,2]
[423762951,1780398647000,-320.2203949,0.00010492,2]
[423762949,1780398647000,-258.96405344,0.00010492,2]
[423762953,1780398647000,-106.43555166,0.00013699,2]
[423762968,1780398647000,-500.0,0.00013699,2]
[423762962,1780398647000,-500.0,0.00013699,2]
[423762989,1780398647000,-500.0,0.00013699,2]
[423762994,1780398647000,-500.0,0.00013699,2]
[423763075,1780398647000,-1321.07351316,0.00013699,2]
[423763074,1780398647000,-4613.93641049,0.00013699,2]
[423763072,1780398647000,-500.0,0.00013699,2]
[423763070,1780398647000,-386.30282624,0.00013699,2]
[423763071,1780398647000,-500.0,0.00013699,2]
[423763034,1780398647000,-113.69717376,0.00013699,2]
[423763033,1780398647000,-500.0,0.00013699,2]
[423763030,1780398647000,-11.84295622,0.00013699,2]
[423763015,1780398647000,-488.15704378,0.00013699,2]
[423763073,1780398647000,-4613.93641049,0.00013699,2]
[423763008,1780398647000,-374.70934405,0.00013699,2]
[423763013,1780398647000,-500.0,0.00013699,2]
[423762996,1780398647000,-500.0,0.00013699,2]
[423763000,1780398647000,-500.0,0.00013699,2]
[423762998,1780398647000,-500.0,0.00013699,2]
[423762992,1780398647000,-500.0,0.00013699,2]
[423763006,1780398647000,-500.0,0.00013699,2]
[423763002,1780398647000,-500.0,0.00013699,2]
[423763011,1780398647000,-63.32295622,0.00013699,2]
[423763004,1780398647000,-500.0,0.00013699,2]
[423763109,1780398664000,739.0,0.000103,3]
[423763112,1780398726000,-1872.98473363,0.000105,5]
[423763113,1780398744000,-1872.98473363,0.000105,5]
[423763114,1780398760000,-1725.29675991,0.000105,5]
[423763115,1780398778000,-500.0,0.00010492,2]
[423763116,1780398829000,-300.0,0.00010491,2]
[423763119,1780398883000,-300.0,0.0001049,2]
[423763120,1780398936000,-1200.0,0.00010489,2]
[423763121,1780398990000,-500.0,0.0001049,2]
[423763122,1780399043000,-1316.4856128,0.00011538,2]
[423763123,1780399059000,-363.5143872,0.00011538,2]
[423763124,1780399188000,422.24501201,0.00010388,2]
[423763125,1780399325000,-300.0,0.00010485,2]
[423763128,1780399342000,-500.0,0.00010486,2]
[423763130,1780399378000,-500.0,0.00010486,2]
[423763131,1780399395000,152.73212188,0.00010387,2]
[423763132,1780399397000,-500.0,0.00010486,2]
[423763133,1780399431000,-300.0,0.00010486,2]
[423763137,1780399447000,-500.0,0.00010486,2]
[423763140,1780399484000,-711.0,0.00010487,2]
[423763141,1780399501000,-1200.0,0.00010487,2]
[423763142,1780399538000,-300.0,0.00010699,2]
[423763143,1780399555000,-1200.0,0.00010699,2]
[423763144,1780399592000,-300.0,0.00010699,2]
[423763145,1780399597000,202.4922,0.00010386,2]
[423763146,1780399645000,-300.0,0.00010699,2]
[423763147,1780399690000,-150.0,0.00010699,2]
[423763148,1780399735000,-224.15427643,0.00010699,2]
[423763153,1780399760000,-8927.75199129,0.000107,2]
[423763151,1780399760000,-179.59248595,0.00010699,2]
[423763152,1780399760000,-196.75034628,0.00010699,2]
[423763149,1780399760000,-514.63033907,0.00010699,2]
[423763150,1780399760000,-181.27483741,0.00010699,2]
[423763154,1780399761000,-10000.0,0.000107,2]
[423763155,1780399763000,-10000.0,0.000107,2]
[423763156,1780399764000,-3293.85605322,0.000107,2]
[423763157,1780399781000,-164.48382561,0.00011538,7]
[423763170,1780399832000,-1237.08734021,0.00011829,2]
[423763181,1780399832000,-163.58,0.0001196,2]
[423763167,1780399832000,-150.0,0.00011734,2]
[423763169,1780399832000,-18.3166072,0.00011829,2]
[423763168,1780399832000,-720.67,0.0001182,2]
[423763171,1780399832000,-592.44605259,0.00011829,2]
[423763173,1780399832000,-286.43,0.0001184,2]
[423763177,1780399832000,-172.82,0.00011934,2]
[423763190,1780399832000,-1031.19,0.00012329,2]
[423763179,1780399832000,-151.32,0.0001196,2]
[423763192,1780399832000,-1000.0,0.00012513,2]
[423763195,1780399832000,-1200.0,0.00012611,2]
[423763188,1780399832000,-166.57,0.00012234,2]
[423763186,1780399832000,-166.49,0.00012127,2]
[423763227,1780399832000,-3963.73661695,0.00012712,2]
[423763197,1780399832000,-867.9396,0.00012612,2]
[423763184,1780399832000,-200.0,0.00011982,2]
[423763201,1780399832000,-143.61486892,0.00012652,2]
[423763206,1780399832000,-1282.43534423,0.000127,2]
[423763209,1780399832000,-150.0,0.00012711,2]
[423763211,1780399832000,-10.40188797,0.00012711,2]
[423763204,1780399832000,-16.60225689,0.00012652,2]
[423763214,1780399832000,-139.59811203,0.00012711,2]
[423763216,1780399832000,-304.05335856,0.00012712,2]
[423763218,1780399832000,-895.41,0.00012712,2]
[423763207,1780399832000,-2663.16077276,0.000127,2]
[423763224,1780399832000,-645.67965522,0.00012712,2]
[423763229,1780399832000,-951.59844034,0.00012712,2]
[423763234,1780399832000,-2566.60401429,0.00012712,2]
[423763199,1780399832000,-191.71728367,0.00012652,2]
[423763247,1780399838000,-7364.43568189,0.00012712,2]
[423763249,1780399838000,-1177.11,0.00012712,2]
[423763248,1780399838000,-458.25533107,0.00012712,2]
[423763246,1780399838000,-156.9079935,0.00012512,2]
[423763280,1780399840000,-500.0,0.00013698,2]
[423763281,1780399840000,-500.0,0.00013698,2]
[423763279,1780399840000,-500.0,0.00013698,2]
[423763272,1780399840000,-2319.0,0.000134,2]
[423763278,1780399840000,-500.0,0.00013698,2]
[423763276,1780399840000,-2663.1607727,0.00013678,2]
[423763271,1780399840000,-628.56,0.00013376,2]
[423763274,1780399840000,-398.75,0.00013608,2]
[423763273,1780399840000,-2663.1607727,0.00013433,2]
[423763275,1780399840000,-1282.43534423,0.00013643,2]
[423763269,1780399840000,-1282.43534423,0.00013329,2]
[423763260,1780399840000,-906.04414751,0.00012712,2]
[423763267,1780399840000,-2126.0739474,0.00013257,2]
[423763277,1780399840000,-503.57198463,0.00013698,2]
[423763268,1780399840000,-1847.85,0.00013307,2]
[423763265,1780399840000,-1282.43534423,0.00013014,2]
[423763266,1780399840000,-2663.1607727,0.00013189,2]
[423763263,1780399840000,-3611.17996157,0.000128,2]
[423763264,1780399840000,-2663.1607727,0.00012944,2]
[423763262,1780399840000,-487090.95241213,0.00012712,2]
[423763261,1780399840000,-1316.4856128,0.00012712,2]
[423763259,1780399840000,-2711.58502924,0.00012712,2]
[423763283,1780399840000,-500.0,0.00013698,2]
[423763270,1780399840000,-278.253208,0.00013374,2]
[423763282,1780399840000,-500.0,0.00013698,2]
[423763338,1780399840000,-500.0,0.00013699,2]
[423763291,1780399840000,-500.0,0.00013698,2]
[423763336,1780399840000,-500.0,0.00013699,2]
[423763331,1780399840000,-500.0,0.00013699,2]
[423763327,1780399840000,-500.0,0.00013699,2]
[423763333,1780399840000,-500.0,0.00013699,2]
[423763329,1780399840000,-500.0,0.00013699,2]
[423763325,1780399840000,-500.0,0.00013699,2]
[423763323,1780399840000,-391.50267079,0.00013699,2]
[423763320,1780399840000,-200.0,0.00013699,2]
[423763317,1780399840000,-350.0,0.00013699,3]
[423763315,1780399840000,-274.509484,0.00013699,2]
[423763313,1780399840000,-151.0,0.00013699,2]
[423763300,1780399840000,-500.0,0.00013698,2]
[423763285,1780399840000,-500.0,0.00013698,2]
[423763302,1780399840000,-502.08902244,0.00013698,2]
[423763286,1780399840000,-500.0,0.00013698,2]
[423763289,1780399840000,-500.0,0.00013698,2]
[423763287,1780399840000,-500.0,0.00013698,2]
[423763284,1780399840000,-500.0,0.00013698,2]
[423763294,1780399840000,-500.0,0.00013698,2]
[423763307,1780399840000,-500.0,0.00013698,2]
[423763309,1780399840000,-200.0,0.00013699,2]
[423763298,1780399840000,-500.0,0.00013698,2]
[423763296,1780399840000,-500.0,0.00013698,2]
[423763311,1780399840000,-166.66,0.00013699,2]
[423763304,1780399840000,-500.0,0.00013698,2]
[423763412,1780399841000,-200.0,0.00013836,2]
[423763410,1780399841000,-255.0,0.00013804,2]
[423763409,1780399841000,-1299.68,0.000137,2]
[423763411,1780399841000,-166.66,0.00013836,2]
[423763398,1780399841000,-500.0,0.00013699,2]